Cogmind - Beta 10.2 @@@ ROGUE MODE // 2022.02.01 @ 23:07:20 Player: Avari3l Result: Destroyed by as-05008 with Assembled Blade Performance ------------- Evolutions (0) 0 Regions Visited (2) 400 Robots Destroyed (9) 45 Value Destroyed (191) 191 Prototype IDs (0) 0 Alien Tech Used (0) 0 Bonus (0) 0 TOTAL SCORE: 636 Bonus ------- None Cogmind --------- Core Integrity 0/250 Matter 146/300 Energy 70/250 System Corruption 5% Temperature Cool (0) Movement Walking (210) Ox3 Location -10/Mines Parts ------- > --- POWER (1) -------- Ion Engine > --- PROPULSION (2) --- Aluminum Leg > --- UTILITY (2) ------ Large Storage Unit Large Storage Unit > --- WEAPON (2) ------- (None) > --- INVENTORY (16) --- Light Treads Light Treads Aluminum Leg Medium Storage Unit Signal Interpreter Seismic Analyzer Peak State ------------ > --- POWER ------------ Ion Engine > --- PROPULSION ------- Aluminum Leg Aluminum Leg > --- UTILITY ---------- Heat Sink Large Storage Unit > --- WEAPON ----------- Light Cannon Light Cannon > --- INVENTORY -------- Ion Engine Light Treads Light Treads Aluminum Leg Aluminum Leg Medium Storage Unit Large Storage Unit Signal Interpreter Seismic Analyzer Assault Rifle [Rating: 8] Favorites ----------- Power Ion Engine Engine Ion Engine Propulsion Aluminum Leg Leg Aluminum Leg Utility Heat Sink Device Heat Sink Storage Large Storage Unit Weapon Light Cannon Energy Gun Small Laser Ballistic Gun Assault Rifle Ballistic Cannon Light Cannon Build | -11 -10 -10 ------- Run | Scr Mat Min Slots Evolved . | . . . Power . | . . . Propulsion . | . . . Utility . | . . . Weapon . | . . . Parts Attached 14 | . 9 5 Power 2 | . 1 1 Engine 2 | . 1 1 Core . | . . . Reactor . | . . . Propulsion 4 | . 2 2 Treads . | . . . Leg 4 | . 2 2 Wheel . | . . . Hover . | . . . Flight . | . . . Utility 4 | . 3 1 Device 1 | . 1 . Storage 3 | . 2 1 Processor . | . . . Hackware . | . . . Protection . | . . . Artifact . | . . . Weapon 4 | . 3 1 Energy Gun . | . . . Energy Cannon . | . . . Ballistic Gun 1 | . . 1 Ballistic Cannon 3 | . 3 . Launcher . | . . . Special Weapon . | . . . Impact Weapon . | . . . Slashing Weapon . | . . . Piercing Weapon . | . . . Special Melee Weapon . | . . . Unidentified Prototypes . | . . . Parts Lost 7 | . 2 5 Power 1 | . . 1 Propulsion 2 | . . 2 Utility 1 | . . 1 Weapon 3 | . 2 1 Highest Loss Streak 4 | . 1 4 Average Slot Usage (%) 98 | . 99 95 Engine 14 | . 14 14 Leg 27 | . 28 27 Device 13 | . 13 10 Storage 14 | . 14 17 Energy Gun 14 | . 18 . Ballistic Cannon 11 | . 8 21 Naked Turns . | . . . Heaviest Build 28 | 10 28 28 Greatest Support 20 | 20 20 20 Greatest Overweight (x) 1 | . 1 1 Average Overweight (x) . | . . 1 Largest Inventory Capacity 16 | . 10 16 Average Capacity 9 | . 8 11 Most Carried 10 | . 10 10 Average Carried 7 | . 7 9 Final Capacity 16 | 6 10 16 Final Carried 10 | 6 10 6 Class Distribution -------------------- 100% | Mutant Dominant Class ---------------- Mutant | -10/Materials Mutant | -10/Mines Resources | -11 -10 -10 ----------- Run | Scr Mat Min Matter Collected 322 | 200 107 15 Remotely . | . . . Salvage Created 254 | . 175 79 Parts 10 | . 6 4 Haulers Intercepted . | . . . Recyclers Shooed . | . . . Parts Field Recycled . | . . . Retrieved Matter . | . . . Parts Self-Destructed . | . . . Prevented . | . . . Kills | -11 -10 -10 ------- Run | Scr Mat Min Combat Hostiles Destroyed 12 | . 5 7 Guns 7 | . 3 4 Cannons 5 | . 2 3 Classes Destroyed 4 | . 3 1 Operator 1 | . 1 . Swarmer 5 | . 2 3 Grunt 3 | . 3 . Assembled 4 | . . 4 Best Kill Streak 3 | . 2 3 Combat Bots Only 3 | . 2 3 Max Kills in Single Turn 1 | . 1 1 Gunslinging . | . . . Exploded . | . . . Melee . | . . . Uniques/NPCs Destroyed . | . . . Combat | -11 -10 -10 -------- Run | Scr Mat Min Damage Taken 1124 | . 222 902 Core 262 | . 35 227 Absorbed by Shields . | . . . Core Remaining (%) 100 | 100 . . Volleys Fired 45 | . 15 30 Largest 2 | . 2 2 Hottest 80 | . 80 70 Shots Fired 67 | . 30 37 Gun 45 | . 22 23 Cannon 22 | . 8 14 Launcher . | . . . Special . | . . . Kinetic 45 | . 8 37 Thermal 14 | . 14 . Explosive . | . . . Electromagnetic 8 | . 8 . Robot Hit Streak 11 | . 11 5 Robot Miss Streak 4 | . 2 4 Penetration Max . | . . . Secondary Targets . | . . . Shots Hit Robots 37 | . 18 19 Core Hits 19 | . 8 11 Critical Hits . | . . . Critical Kills . | . . . Critical Parts Destroyed . | . . . Melee Attacks . | . . . Impact . | . . . Slashing . | . . . Piercing . | . . . Sneak Attacks . | . . . Combat Hostiles . | . . . Follow-up Attacks . | . . . Damage Inflicted 536 | . 251 285 Guns 322 | . 134 188 Cannons 214 | . 117 97 Explosions . | . . . Melee . | . . . Ramming . | . . . Kinetic 402 | . 117 285 Thermal 66 | . 66 . Explosive . | . . . Electromagnetic 68 | . 68 . Impact . | . . . Slashing . | . . . Piercing . | . . . Highest Corruption 5 | . . 5 Average Corruption 5 | . . 5 Corruption Purged . | . . . Effects 2 | . . 2 Matter Fused 1 | . . 1 Targeting Errors 1 | . . 1 Overload Shots . | . . . Overflow Damage . | . . . Projectiles . | . . . Explosions . | . . . Melee . | . . . Knockbacks 5 | . 2 3 Impact . | . . . Kinetic 5 | . 2 3 Secondary . | . . . Self-Inflicted Damage . | . . . Shots . | . . . Rammed . | . . . Targets Rammed . | . . . Kicked . | . . . Crushed . | . . . Highest Temperature 20 | . 15 20 Average Temperature 8 | . 6 11 Received Heat Transfer 279 | . 99 180 Siege Activations . | . . . Robots Corrupted . | . . . Combat Hostiles . | . . . Parts Fried . | . . . Impact Corruptions . | . . . Robots Melted . | . . . Combat Hostiles . | . . . Parts Melted . | . . . Heat Transferred 150 | . 150 . Parts Sabotaged . | . . . Parts Stolen . | . . . Parts Stripped . | . . . Power Chain Reactions . | . . . Missiles Intercepted . | . . . Alert | -11 -10 -10 ------- Run | Scr Mat Min Peak Influence 114 | . 114 91 Initial 6 | . . 6 Average 64 | . 60 81 Maximum Alert Level . | . . . Low Security (%) 100 | . 100 100 Level 1 . | . . . Level 2 . | . . . Level 3 . | . . . Level 4 . | . . . Level 5 . | . . . High Security . | . . . Max Security . | . . . Squads Dispatched 1 | . 1 . Investigation . | . . . Extermination . | . . . Reinforcement 1 | . 1 . Assault . | . . . Garrison . | . . . Intercept . | . . . Construction Impeded . | . . . Haulers Reinforced . | . . . Stealth | -11 -10 -10 --------- Run | Scr Mat Min Distress Signals 1 | . 1 . Communications Jammed . | . . . Distress Signals . | . . . Times Spotted 26 | . 16 10 Peak Tracking Total 7 | . 5 7 Tactical Retreats 4 | . 2 2 Traps | -11 -10 -10 ------- Run | Scr Mat Min Traps Triggered . | . . . Indirectly . | . . . Trap Hack Attempts . | . . . Triggered . | . . . Disarmed . | . . . Reprogrammed . | . . . Reused . | . . . Traps Extracted . | . . . Installed . | . . . Triggered . | . . . Machines | -11 -10 -10 ---------- Run | Scr Mat Min Machines Disabled 1 | . . 1 Max in Single Turn 1 | . . 1 Machines Sabotaged . | . . . Garrisons Compromised . | . . . Overloaded Fab Kills . | . . . Fab Network Shutdowns . | . . . Hacking | -11 -10 -10 --------- Run | Scr Mat Min Machines Accessed 10 | . 9 1 Terminals 9 | . 8 1 Fabricators . | . . . Repair Stations . | . . . Recycling Units 1 | . 1 . Scanalyzers . | . . . Garrison Access . | . . . Total Hacks 31 | . 28 3 Successful 16 | . 16 . Failed 15 | . 12 3 Catastrophic 2 | . 1 1 Database Lockouts . | . . . Manual 25 | . 25 . Terminals 30 | . 27 3 Fabricators . | . . . Repair Stations . | . . . Recycling Units 1 | . 1 . Scanalyzers . | . . . Garrison Access . | . . . Terminal Hacks 9 | . 9 . Part Schematic 4 | . 4 . Alert Level 1 | . 1 . Unreport Threat 1 | . 1 . Locate Traps 3 | . 3 . Fabricator Hacks . | . . . Repair Station Hacks . | . . . Recycling Unit Hacks 1 | . 1 . Retrieve Components 1 | . 1 . Scanalyzer . | . . . Garrison Access Hacks . | . . . Unauthorized Hacks 6 | . 6 . Terminals 6 | . 6 . Botnet 6 | . 6 . Fabricators . | . . . Repair Stations . | . . . Recycling Units . | . . . Scanalyzers . | . . . Garrison Access . | . . . Data Cores Recovered . | . . . Used . | . . . Hacking Detections 8 | . 7 1 Full Trace Events . | . . . Feedback Events . | . . . Feedback Blocked . | . . . Robot Schematics Acquired . | . . . Robots Built . | . . . Matter . | . . . Time . | . . . Total Robot Build Rating . | . . . Part Schematics Acquired 4 | . 4 . Parts Built . | . . . Matter . | . . . Time . | . . . Total Part Build Rating . | . . . Parts Repaired . | . . . Time . | . . . Parts Recycled . | . . . Recycled Matter . | . . . Retrieved Matter . | . . . Retrieved Components 9 | . 9 . Parts Scanalyzed . | . . . Part Schematics Acquired . | . . . Parts Damaged . | . . . Bothacking | -11 -10 -10 ------------ Run | Scr Mat Min Used RIF Installer . | . . . Robots Hacked . | . . . Non-combat . | . . . Combat . | . . . Robot Hacks Applied . | . . . Relay Couplers Released . | . . . Robots Rewired . | . . . Allies Hacked . | . . . Hacks Repelled . | . . . Allies | -11 -10 -10 -------- Run | Scr Mat Min Total Allies . | . . . Largest Group . | . . . Highest-Rated Group . | . . . Highest-Rated Ally . | . . . Total Orders . | . . . Ally Attacks . | . . . Total Damage . | . . . Kills . | . . . Allies Corrupted . | . . . Allies Melted . | . . . Intel | -11 -10 -10 ------- Run | Scr Mat Min Robot Analysis Total . | . . . Derelict Logs Recovered . | . . . Drone Launches . | . . . Drone Recoveries . | . . . Exploration | -11 -10 -10 ------------- Run | Scr Mat Min Turns Passed 988 | . 773 215 Spaces Moved 609 | 1 513 95 Core . | . . . Treads . | . . . Legs 609 | 1 513 95 Wheels . | . . . Hover . | . . . Flight . | . . . Fastest Speed 120 | 120 120 150 Average Speed 134 | 120 131 150 Slowest Speed 150 | 120 150 150 Overloaded Moves . | . . . Propulsion Burnouts . | . . . Robots Hopped . | . . . Cave-ins Triggered . | . . . Exploration Rate (%) 35 | 2 82 21 Regions Visited 2 Branch Regions 1 Pre-discovered Areas . | . . . Known Exits Taken . | . . . Unknown Exits Taken 2 | 1 1 . Scrap Searched . | . . . Spaces Dug . | . . . Terrain Destroyed . | . . . Melee . | . . . Projectile . | . . . AOE . | . . . Terrain Rammed . | . . . Walls Destroyed . | . . . Machines Disabled . | . . . Actions | -11 -10 -10 --------- Run | Scr Mat Min Total 710 | . 580 130 Wait 28 | . 28 . Move 607 | . 512 95 Hop . | . . . Pick Up 9 | . 9 . Fast Attach . | . . . Attach 7 | . 3 4 Detach . | . . . Swap 7 | . 6 1 Drop 7 | . 7 . Fire 45 | . 15 30 Melee . | . . . Ram . | . . . Kick . | . . . Crush . | . . . Escape Stasis . | . . . Rewire . | . . . Trap . | . . . Miscellaneous . | . . . Route ------- -11/Scrapyard -10/Materials (discovered 3 exits: [*Mat x2] / *Min) -10/Mines History --------- Turn | Location | Event 1 | -11/Scrapyard | Discovered new exit (range 0) 1 | -11/Scrapyard | Entered Materials 229 | -10/Materials | Discovered new exit (range 11) 308 | -10/Materials | Build established: Mutant 314 | -10/Materials | Discovered new exit (range 10) 671 | -10/Materials | Discovered new exit (range 12) 774 | -10/Materials | Entered Mines 905 | -10/Mines | Assembled infested the area 933 | -10/Mines | Core integrity fell below 50% 960 | -10/Mines | Core integrity fell below 20% 989 | -10/Mines | Destroyed by as-05008 with Assembled Blade Last Messages --------------- 00808_ Current location identified: Mines 00808_ K-01 Serf collects debris. 00905_ ALERT: Infestation in the mines, dispatching Demolisher response squad. 00922_ Knocked back. 00928_ Lgt. Cannon severed. 00932_ Heat Sink destroyed. 00932_ System corrupted by crushing effect (+5). 00942_ Lgt. Cannon severed. 00946_ as-20270 destroyed. 00956_ Destroyed Asb. Hover Unit. 00960_ as-06619 destroyed. 00964_ as-19437 destroyed. 00966_ Aluminum Leg destroyed. 00970_ System corrupted: Matter fused (-9). 00977_ System corrupted: Assault Rifle targeting data glitched. 00979_ Aluminum Leg destroyed. 00985_ as-59909 destroyed. 00986_ Assault Rifle destroyed. 00986_ Ion Engine destroyed. Map ----- +----------------------------------------------------+ | ????????# ??????????????????????????????????????? | | ????????# ??????????????????????????????????????? | | ????????# #?????????????????????????????????????? | | ????????# #?????????????????????????????????????? | | ??????### ###???????????????????????????????????? | | ??????# #???????????????????????????????????? | | ????### #???????????????????????????????????? | | ????? #???????????????????????????????????? | | ??????# """ #???????????????????????????????????? | | ??????# "" ##??????????????????????????????????? | | ??????# " =T#??????????????????????????????????? | | ??????# = [ #???????????????????????????????????? | | ??????# =#???????????????????????????????????? | | ??????# #???#####???????????????????????????? | | ??????# #???# ????????????????????????????? | | ??????# ##### #?????????????????????????????? | | ??????### ### #???????????????????####??????? | | ????????# #?# #### #????????????####??## ##?????? | | ????????# #?# #??# #???????????## ##?# #?????? | | ????????# #?# #??# #???????????# ### ##????? | | ????????# ### #??# #??????????## ##???? | | ????????# #??# #?????????## ##### | | ????????#######??# #????????## | | ?????????????????# #????##### ###### | | ?????????????????# #????#%aa ###????? | | ?????????????????# #????#@## ##??????? | | ??????????????#### ##???# ### ] ## #???????? | | ?????????????## ##??# #?## #### ##???????? | | ?????????????# """ ####%##### ##??####????????? | | ?????????????# """ #???????????????? | | ?????????????# """ #???????????????? | | ?????????????## ######## ##???????????????? | | ??????????????### ######## #????????????????? | | ????????????????## #????????????????? | | ?????????????????## ###########????????????????? | | ??????????????????#####??????????????????????????? | | ?????????????????????????????????????????????????? | | | | | | | | | | | | | | | | | | | | | | | | | | | +----------------------------------------------------+ Best States ------------- Heat Dissipation 35 Energy Generation 10 Energy Capacity 250 Matter Stores 300 Matter Capacity 300 Sight Range 16 Terrain Scan Density 10 Evasion (%) 40 Item Schematics ----------------- Hcp. Storage Unit | -10/Materials | Hacked Terrain Scanner | -10/Materials | Hacked Lgt. Armor Plating | -10/Materials | Hacked Signal Interpreter | -10/Materials | Hacked Robot Schematics ------------------ None Fabricated ------------ Nothing Alien Tech Used ----------------- None Achievements -------------- None Challenges ------------ None Game ------ Seed BombardmentElectronBeam Manual? 0 Play Time 00:17:24 Cumulative 74.7 hours Start 2022.02.01 @ 22:30:07 End 2022.02.01 @ 23:07:20 Sessions 1 Manual Loads 0 Difficulty Rogue Special Mode None Game No. 43 Rogue 43 Adventurer 0 Explorer 0 Win Type - Total 1 Types 1/0/0/0/0/0/0/0/0 Lore% 32 Gallery% 46 Achievement% 32 Wizard Run 0 Options --------- ASCII 0 Keyboard 0 Movement Numpad Keybinds 0 Fullscreen 1 Font 18/Smallcaps Map View 76x50 Tactical HUD 1 Map Filters NONE Filters NONE Steam 1 RUN: de7a08bb-df19-4a32-87c1-53f0a4911c9e